Cogmind - Beta 14 @@@ ROGUE MODE // 2025.01.14 @ 13:25:49 Player: Derk Result: Destroyed by KA-05W(R) with Subdweller Laser Performance ------------- Evolutions (0) 0 Regions Visited (2) 400 Robots Destroyed (23) 115 Value Destroyed (747) 747 Prototype IDs (0) 0 Alien Tech Used (0) 0 Bonus (0) 0 TOTAL SCORE: 1262 Bonus ------- None Cogmind --------- Core Integrity 0/250 Matter 253/300 Energy 70/100 System Corruption 1% Temperature Cool (6) Movement Rolling (105) Ox1 Location -10/Subcaves Parts ------- > --- POWER (1) -------- (None) > --- PROPULSION (2) --- Armored Wheel Armored Wheel > --- UTILITY (2) ------ High-capacity Storage Unit Makeshift Light Armor Plating > --- WEAPON (2) ------- Heavy EM Pulse Gun Mining Laser > --- INVENTORY (20) --- Subdweller Power Source Subdweller Power Source Light Treads Light Treads Armored Wheel Armored Wheel Subdweller Monowheel Subdweller Monowheel Improved Heat Sink Disposable Heat Sink Subdweller Optics Subdweller Optics Scrap Shield Hacking Suite Hacking Suite Particle Gun Battle Rifle Grenade Launcher Peak State ------------ > --- POWER ------------ Ion Engine > --- PROPULSION ------- Armored Wheel Armored Wheel > --- UTILITY ---------- High-capacity Storage Unit Makeshift Light Armor Plating > --- WEAPON ----------- Light Cannon Mining Laser > --- INVENTORY -------- Subdweller Power Source Light Treads Light Treads Armored Wheel Armored Wheel Subdweller Monowheel Subdweller Monowheel Improved Heat Sink Disposable Heat Sink Subdweller Optics Subdweller Optics Subdweller Optics Scrap Shield Hacking Suite Hacking Suite Heavy EM Pulse Gun Particle Gun Shotgun Grenade Launcher [Rating: 16] Favorites ----------- Power Ion Engine Engine Ion Engine Power Core Light Nuclear Core Propulsion Armored Wheel Treads Light Treads Wheel Armored Wheel Utility High-capacity Storage Unit Device Improved Heat Sink Storage High-capacity Storage Unit Protection Makeshift Light Armor Plating Weapon Light Assault Rifle Energy Gun Particle Gun Ballistic Gun Light Assault Rifle Ballistic Cannon Light Cannon Launcher Grenade Launcher Special Weapon Mining Laser Build | -11 -10 -10 ------- Run | Yrd Mat Sub Slots Evolved . | . . . Power . | . . . Propulsion . | . . . Utility . | . . . Weapon . | . . . Parts Attached 40 | 7 27 6 Power 5 | 1 4 . Engine 4 | 1 3 . Core 1 | . 1 . Reactor . | . . . Propulsion 11 | 2 9 . Treads 7 | 2 5 . Leg . | . . . Wheel 4 | . 4 . Hover . | . . . Flight . | . . . Utility 7 | 2 4 1 Device 4 | 1 3 . Storage 2 | 1 1 . Processor . | . . . Hackware . | . . . Protection 1 | . . 1 Artifact . | . . . Weapon 17 | 2 10 5 Energy Gun 3 | . 2 1 Energy Cannon . | . . . Ballistic Gun 7 | 2 5 . Ballistic Cannon 1 | . . 1 Launcher 1 | . . 1 Special Weapon 5 | . 3 2 Impact Weapon . | . . . Slashing Weapon . | . . . Piercing Weapon . | . . . Special Melee Weapon . | . . . Unidentified Prototypes . | . . . Parts Lost 9 | . 7 2 Power 3 | . 2 1 Propulsion 1 | . 1 . Utility 1 | . 1 . Weapon 4 | . 3 1 Highest Loss Streak 3 | . 3 2 To Critical Strikes . | . . . Average Slot Usage (%) 99 | . 98 99 Engine 12 | . 11 13 Core 1 | . 2 . Treads 12 | . 20 . Wheel 15 | . 7 28 Device 9 | . 13 2 Storage 14 | . 14 14 Protection 4 | . . 11 Energy Gun 6 | . 8 2 Ballistic Gun 9 | . 14 . Ballistic Cannon 3 | . . 9 Launcher 4 | . . 10 Special Weapon 4 | . 4 4 Peak Build Rating 16 | 7 15 16 Average Rating 11 | 5 10 14 On Entrance 7 | . 7 15 Naked Turns . | . . . Heaviest Build 55 | 12 52 55 Greatest Support 40 | 40 40 24 Greatest Overweight (x) 2 | . 2 2 Average Overweight (x) 1 | . . 2 Largest Inventory Capacity 20 | 8 20 20 Average Capacity 13 | 7 10 20 Most Carried 20 | 6 13 20 Average Carried 11 | 4 8 18 Final Capacity 20 | 8 20 20 Final Carried 19 | 6 13 19 Class Distribution -------------------- 87% | Mutant 12% | Scavenger-Mutant Dominant Class ---------------- Mutant | -10/Materials Mutant | -10/Subcaves Resources | -11 -10 -10 ----------- Run | Yrd Mat Sub Matter Collected 886 | 338 362 186 Remotely . | . . . Salvage Created 856 | 120 590 146 Parts 43 | 4 28 11 Haulers Intercepted 1 | . 1 . Recyclers Shooed . | . . . Parts Field Recycled . | . . . Retrieved Matter . | . . . Parts Self-Destructed . | . . . Prevented . | . . . Kills | -11 -10 -10 ------- Run | Yrd Mat Sub Combat Hostiles Destroyed 18 | . 12 6 Guns 13 | . 12 1 Cannons 2 | . . 2 AOE 3 | . . 3 Classes Destroyed 6 | 2 3 1 Tunneler 1 | 1 . . Hauler 1 | . 1 . Recycler 1 | 1 . . Operator 2 | . 2 . Grunt 12 | . 12 . Subdweller 6 | . . 6 Best Kill Streak 4 | 2 4 3 Combat Bots Only 4 | . 4 3 Max Kills in Single Turn 1 | 1 1 1 Gunslinging . | . . . Exploded 1 | . . 1 Melee . | . . . Uniques/NPCs Destroyed . | . . . Combat | -11 -10 -10 -------- Run | Yrd Mat Sub Hostile Shots Fired 99 | . 77 22 Missed 17 | . 14 3 Damage Taken 1378 | . 863 515 Core 265 | . 140 125 Absorbed by Shields . | . . . Regen/Repaired (Parts) 43 | . 43 . Core Remaining (%) 100 | 100 . . Volleys Fired 103 | 17 64 22 Largest 2 | 2 2 1 Hottest 110 | 40 110 100 Shots Fired 175 | 34 119 22 Gun 152 | 34 115 3 Cannon 10 | . . 10 Launcher 6 | . . 6 Special 7 | . 4 3 Kinetic 137 | 34 93 10 Thermal 28 | . 25 3 Explosive 6 | . . 6 Electromagnetic 4 | . 1 3 Robot Hit Streak 15 | 5 15 9 Robot Miss Streak 3 | 3 2 1 Penetration Max . | . . . Secondary Targets 2 | . 2 . Max Gunslinging Chain 1 | . 1 . Shots Hit Robots 125 | 23 88 14 Core Hits 45 | 5 32 8 Critical Kills 1 | . 1 . Critical Parts Destroyed 1 | . 1 . Critical Strikes 5 | . 3 2 Burn 1 | . 1 . Destroy 2 | . 2 . Blast 2 | . . 2 Melee Attacks . | . . . Impact . | . . . Slashing . | . . . Piercing . | . . . Sneak Attacks . | . . . Combat Hostiles . | . . . Follow-up Attacks . | . . . Damage Inflicted 1791 | 262 962 567 Guns 1265 | 262 962 41 Cannons 107 | . . 107 Explosions 419 | . . 419 Melee . | . . . Ramming . | . . . Kinetic 1079 | 262 710 107 Thermal 233 | . 233 . Explosive 419 | . . 419 Electromagnetic 60 | . 19 41 Impact . | . . . Slashing . | . . . Piercing . | . . . Highest Corruption 1 | . 1 1 Average Corruption 1 | . 1 1 Corruption Purged . | . . . Corruption Blocked . | . . . Effects 12 | . 7 5 Message Errors 1 | . . 1 Matter Fused 5 | . 4 1 Heat Flow Errors 1 | . . 1 Energy Discharges 1 | . . 1 Data Loss (minor) 4 | . 3 1 Overload Shots . | . . . Overflow Damage . | . . . Projectiles . | . . . Explosions . | . . . Melee . | . . . Knockbacks . | . . . Impact . | . . . Kinetic . | . . . Secondary . | . . . Self-Inflicted Damage . | . . . Shots . | . . . Rammed . | . . . Targets Rammed . | . . . Kicked . | . . . Crushed . | . . . Highest Temperature 169 | . 38 169 Average Temperature 20 | . 14 99 Received Heat Transfer 510 | . 435 75 Siege Activations . | . . . Robots Corrupted . | . . . Combat Hostiles . | . . . Parts Fried . | . . . Impact Corruptions . | . . . Robots Melted . | . . . Combat Hostiles . | . . . Parts Melted 3 | . 3 . Heat Transferred 629 | . 629 . Parts Sabotaged . | . . . Parts Stolen . | . . . Parts Stripped . | . . . Power Chain Reactions . | . . . Alert | -11 -10 -10 ------- Run | Yrd Mat Sub Peak Influence 215 | 10 215 . Initial 6 | . 6 . Average 58 | 2 64 . Maximum Alert Level 1 | . 1 . Low Security (%) 97 | 100 97 . Level 1 2 | . 2 . Level 2 . | . . . Level 3 . | . . . Level 4 . | . . . Level 5 . | . . . High Security . | . . . Max Security . | . . . Squads Dispatched 2 | . 2 . Investigation 2 | . 2 . Extermination . | . . . Reinforcement . | . . . Assault . | . . . Garrison . | . . . Intercept . | . . . Searches Triggered . | . . . Construction Impeded . | . . . Haulers Reinforced . | . . . Active Scanning Responses . | . . . Cargo Convoy Interrupts . | . . . Stealth | -11 -10 -10 --------- Run | Yrd Mat Sub Distress Signals 2 | . 2 . Communications Jammed . | . . . Distress Signals . | . . . Times Spotted 33 | . 26 7 Peak Tracking Total 4 | . 4 2 Tactical Retreats . | . . . Traps | -11 -10 -10 ------- Run | Yrd Mat Sub Traps Triggered 2 | . 2 . Indirectly . | . . . Trap Hack Attempts . | . . . Triggered . | . . . Disarmed 6 | . 6 . Reprogrammed . | . . . Reused . | . . . Traps Extracted . | . . . Installed . | . . . Triggered . | . . . Machines | -11 -10 -10 ---------- Run | Yrd Mat Sub Machines Disabled . | . . . Max in Single Turn . | . . . Machines Repaired . | . . . Machines Dismantled . | . . . Machines Sabotaged . | . . . Overloaded Fab Kills . | . . . Hacking | -11 -10 -10 --------- Run | Yrd Mat Sub Machines Accessed 10 | . 10 . Terminals 7 | . 7 . Fabricators . | . . . Repair Stations 1 | . 1 . Recycling Units 2 | . 2 . Scanalyzers . | . . . Garrison Access . | . . . Total Hacks 39 | . 39 . Successful 24 | . 24 . Failed 15 | . 15 . Catastrophic 1 | . 1 . Database Lockouts . | . . . Manual 28 | . 28 . Terminals 33 | . 33 . Fabricators . | . . . Repair Stations 2 | . 2 . Recycling Units 4 | . 4 . Scanalyzers . | . . . Garrison Access . | . . . Terminal Hacks 12 | . 12 . Part Schematic 1 | . 1 . Robot Analysis 2 | . 2 . Unreport Threat 1 | . 1 . Locate Traps 2 | . 2 . Disarm Traps 1 | . 1 . Dispatch Records 1 | . 1 . Security Status 1 | . 1 . Hauler Manifests 1 | . 1 . Registered Components 1 | . 1 . Zone Layout 1 | . 1 . Fabricator Hacks . | . . . Repair Station Hacks 2 | . 2 . Scan Component 1 | . 1 . Repair 1 | . 1 . Recycling Unit Hacks . | . . . Scanalyzer . | . . . Garrison Access Hacks . | . . . Unauthorized Hacks 10 | . 10 . Terminals 8 | . 8 . Botnet 2 | . 2 . Operators 1 | . 1 . Skim 5 | . 5 . Fabricators . | . . . Repair Stations . | . . . Recycling Units 2 | . 2 . Tunnel 2 | . 2 . Scanalyzers . | . . . Garrison Access . | . . . Data Cores Recovered 2 | . 2 . Used 1 | . 1 . Hacking Detections 6 | . 6 . Full Trace Events . | . . . Feedback Events . | . . . Feedback Blocked . | . . . Robot Schematics Acquired . | . . . Robots Built . | . . . Authchips . | . . . Time . | . . . Total Robot Build Rating . | . . . Part Schematics Acquired 1 | . 1 . Parts Built . | . . . Authchips . | . . . Time . | . . . Total Part Build Rating . | . . . Parts Repaired 1 | . 1 . Time 26 | . 26 . Parts Recycled . | . . . Recycled Matter . | . . . Retrieved Matter . | . . . Retrieved Components . | . . . Parts Scanalyzed . | . . . Part Schematics Acquired . | . . . Parts Damaged . | . . . Bothacking | -11 -10 -10 ------------ Run | Yrd Mat Sub Used RIF Installer . | . . . Robots Hacked . | . . . Non-combat . | . . . Combat . | . . . Robot Hacks Applied . | . . . Relay Couplers Released . | . . . Fabnet Peak Effective % . | . . . Robots Rewired . | . . . Allies Hacked . | . . . Hacks Repelled . | . . . Allies | -11 -10 -10 -------- Run | Yrd Mat Sub Total Allies . | . . . Largest Group . | . . . Highest-Rated Group . | . . . Highest-Rated Ally . | . . . Total Orders . | . . . Ally Attacks . | . . . Total Damage . | . . . Kills . | . . . Allies Corrupted . | . . . Allies Melted . | . . . Intel | -11 -10 -10 ------- Run | Yrd Mat Sub Robot Analysis Total 2 | . 2 . Derelict Logs Recovered . | . . . Drone Launches . | . . . Drone Recoveries . | . . . Exploration | -11 -10 -10 ------------- Run | Yrd Mat Sub Turns Passed 2379 | 139 1392 848 Spaces Moved 1341 | 57 644 640 Core 14 | 14 . . Treads 523 | 43 480 . Legs . | . . . Wheels 804 | . 164 640 Hover . | . . . Flight . | . . . Fastest Speed 50 | 50 80 120 Average Speed 134 | 132 149 120 Slowest Speed 160 | 160 160 120 Overloaded Moves . | . . . Propulsion Burnouts . | . . . Robots Hopped . | . . . Cave-ins Triggered . | . . . Exploration Rate (%) 49 | 6 96 45 Regions Visited 2 Branch Regions 1 Pre-discovered Areas 3 | . 3 . Known Exits Taken . | . . . Unknown Exits Taken 2 | 1 1 . Scrap Searched . | . . . Spaces Dug 4 | . 4 . Terrain Destroyed 23 | . 4 19 Melee . | . . . Projectile 4 | . 4 . AOE 19 | . . 19 Terrain Rammed . | . . . Walls Destroyed . | . . . Machines Disabled . | . . . Actions | -11 -10 -10 --------- Run | Yrd Mat Sub Total 1734 | 86 954 694 Wait 196 | . 190 6 Move 1339 | 56 643 640 Hop . | . . . Pick Up 36 | 6 18 12 Fast Attach 14 | 7 6 1 Attach 9 | . 8 1 Detach 2 | . 1 1 Swap 17 | . 13 4 Drop 18 | . 11 7 Fire 103 | 17 64 22 Melee . | . . . Ram . | . . . Kick . | . . . Crush . | . . . Escape Stasis . | . . . Rewire . | . . . Trap . | . . . Miscellaneous . | . . . Route ------- -11/Scrapyard -10/Materials (discovered 5 exits: [*Mat x3] / [*Min] / [*Sub]) -10/Subcaves History --------- Turn | Location | Event 21 | -11/Scrapyard | Discovered new exit (range 15) 140 | -11/Scrapyard | Entered Materials 313 | -10/Materials | Build established: Mutant 483 | -10/Materials | Repaired Lgt. Treads 500 | -10/Materials | Discovered new exit (range 6) 720 | -10/Materials | Lost 3 parts (1p2w) 740 | -10/Materials | Discovered new exit (range 11) 845 | -10/Materials | Core integrity fell below 50% 990 | -10/Materials | Loaded intel: 16 trap records 1058 | -10/Materials | Discovered new exit (range 16) 1095 | -10/Materials | Learned location of Subcaves (-10) 1151 | -10/Materials | Build established: Scavenger-Mutant 1167 | -10/Materials | Learned location of 1 exit from Recycling 1208 | -10/Materials | Learned 4 Recycling zone layouts 1256 | -10/Materials | Discovered new exit (range 3) 1455 | -10/Materials | Build established: Mutant 1513 | -10/Materials | Discovered new exit (range 4) 1532 | -10/Materials | Entered Subcaves 1655 | -10/Subcaves | Shifting Twisted Machinery released Mak. Light Armor Plating 1748 | -10/Subcaves | Shifting Twisted Machinery released Scrap Shield 2371 | -10/Subcaves | Core integrity fell below 20% 2380 | -10/Subcaves | Destroyed by KA-05W(R) with Subdweller Laser Last Messages --------------- 02210_ Acquired Disposable Heat Sink. 02212_ Acquired Sub. Optics. 02213_ Acquired 6 matter. 02215_ Acquired 9 matter. 02216_ Subatomizers dissect the Disposable Heat Sink. 02218_ Dropped Sub. Power Source. 02218_ Acquired Sub. Power Source. 02218_ Dropped Sub. Optics. 02220_ Acquired Sub. Power Source. 02226_ Subatomizers dissect the Disposable Heat Sink. 02292_ Acquired 12 matter. 02300_ Acquired 15 matter. 02303_ Acquired 5 matter. 02313_ Dropped Shotgun. 02314_ Acquired Battle Rifle. 02338_ System corrupted: Energy discharge (-52). 02371_ LR-378(R) Sub. Optics blasted off. 02372_ Lgt. Cannon destroyed. 02374_ Ion Engine destroyed. 02376_ LR-378(R) destroyed. Map ----- +----------------------------------------------------+ | ?????????????????????????????????????????? | | ?????????????????????????????????????????? | | ?????????????????????????????????????????? | | ?????????????????????????????????????????? | | ?????????????????????????????????????????? | | ?????????????????????????????????????????? | | ?????????????????????????????????????????? | | ?????????????????????????????????????????? | | ?????????????????????????????????????????? | | ?????????????????????????????????????????? | | ?????????????????????????????????????????? | | ?????????????????????????????????????????? | | ?????????????????? #?????????????????????? | | ???????????????? R #????????????????????? | | ???????????????? !& ???????????????????? | | ????????????????#]%= ???????????????????? | | ????????????????# #??????????????????? | | ????????????????# ##????????????????? | | ????????????????# ##??????????????? | | ???????????? ????# ###????????????? | | ??????????? ??# # ###??????????? | | ??????????? ### #??????????? | | ??????????? ##?????????? | | ?????????? #?????????? | | ??????????# #?????????? | | ???????????# @ #??????????? | | ?????????????????# #??????????? | | ????????????????## #??????????? | | ????????????????# #??????????? | | ????????????????# # #??????????? | | ????????????????## #####??????????? | | ?????????????????## #??????????????? | | ?????????????????## ##??????????????? | | ????????? #??#?# ##???????????????? | | ?????????# ## # ##???????????????? | | ???????????# ##??????????????? | | ???????????## #??????????????? | | ????????###?### #??????????????? | | ????????# #??### #??????????????? | | ???????## #???# ##?????????????? | | ???????? ##??# #### #?????????????? | | ???????? ##?##???# ##?????????????? | | ????????? #??##### ##?????????????? | | ?????????? #?## #?????????????? | | ??????????# #?# #?????????????? | | ??????????# #?# #?????????????? | | ?????????## #?# ##?????????????? | | ????????## ### ##??????????????? | | ###????## %% ## [ ##??????????????? | | ###### # #??????????????? | +----------------------------------------------------+ Best States ------------- Heat Dissipation 39 Energy Generation 14 Energy Capacity 250 Matter Stores 300 Matter Capacity 300 Sight Range 16 Terrain Scan Density 10 Armor Coverage 100 Evasion (%) 50 Recoil Reduction 2 Item Schematics ----------------- Hcp. Storage Unit | -10/Materials | Hacked Robot Schematics ------------------ None Fabricated ------------ Nothing Alien Tech Used ----------------- None Achievements -------------- None Challenges ------------ None Game ------ Seed WeaponDroneWheel Manual? 0 Play Time 00:25:59 Cumulative 411.1 hours Start 2025.01.14 @ 13:00:01 End 2025.01.14 @ 13:25:49 Sessions 1 Manual Loads 0 Difficulty Rogue Special Mode None Game No. 173 Rogue 173 Adventurer 0 Explorer 0 Win Type - Total 15 Types 13/0/1/1/0/0/0/0/0 Lore% 74 Gallery% 80 Achievement% 68 Wizard Run 0 Options --------- Layout 0 ASCII 0 Keyboard 0 Movement Numpad Keybinds 0 Fullscreen 1 Font 24/X11 Map View 76x50 Zoom Use 0% Tactical HUD 1 Map Filters NONE Filters NONE Steam 1 RUN: fc1325dd-8941-4a9b-b972-b701adced97b